bitfinex/quotes_ETHUSD_20250114
["timestamp","ask_amount","ask_price","bid_price","bid_amount"]
[1736885105867,0.231,3200.8,3200.6,0.8134]
[1736885106957,0.25,3201.2,3200.6,0.8134]
[1736885107173,0.25,3200.7,3200.0,0.8134]
[1736885107526,0.25,3200.9,3200.3,3.12466]
[1736885107720,0.25,3200.9,3200.3,3.12462]
[1736885107926,0.231,3200.9,3200.0,0.8134]
[1736885108128,0.231,3200.9,3200.1,0.394348]
[1736885108356,0.488,3201.5,3200.6,3.12431]
[1736885108538,0.488,3201.5,3200.7,0.8134]
[1736885109137,0.238,3201.7,3201.1,3.12391]
[1736885109381,0.25,3201.6,3200.7,0.8134]
[1736885109558,0.25,3201.6,3200.9,3.12408]
[1736885109761,0.25,3201.6,3201.0,3.12402]
[1736885110273,0.488,3201.6,3200.9,3.1241]
[1736885110460,0.238,3201.6,3200.9,0.39375]
[1736885110662,0.238,3201.6,3200.9,3.12411]
[1736885110975,0.25,3201.0,3200.3,0.8134]
[1736885111134,0.25,3201.0,3200.4,3.12451]
[1736885111334,1.0628,3201.4,3200.3,0.8134]
[1736885111561,0.25,3201.4,3200.7,3.12429]
[1736885111765,0.25,3201.4,3200.9,3.12408]
[1736885111965,0.25,3201.6,3200.8,0.8134]
[1736885112172,0.25,3202.0,3200.8,0.8134]
[1736885112359,0.25,3201.8,3201.4,3.12362]
[1736885112541,0.25,3201.8,3201.2,3.12382]
[1736885112737,0.25,3202.1,3201.6,3.12339]
[1736885112964,0.238,3202.2,3201.6,3.12339]
[1736885112965,0.25,3202.6,3201.7,3.12331]
[1736885113158,0.25,3203.0,3201.8,0.8134]
[1736885113370,0.25,3203.2,3202.4,3.12265]
[1736885113568,0.25,3203.2,3201.9,0.03122121]
[1736885113569,0.25,3203.0,3202.3,3.12274]
[1736885113774,3.12189,3203.2,3202.3,0.312274]
[1736885113775,0.25,3203.2,3202.3,0.312274]
[1736885114040,1.91203309,3203.5,3203.1,3.12194]
[1736885114041,0.238,3203.5,3203.1,3.12194]
[1736885114477,0.25,3204.1,3203.4,3.12162]
[1736885114674,88.10624443,3205.0,3203.8,3.12128]
[1736885114675,0.488,3204.5,3203.8,3.12128]
[1736885114849,0.25,3204.9,3203.5,3.12151]
[1736885115178,81.238,3205.0,3204.4,3.12064]
[1736885115744,81.238,3205.0,3204.2,3.93426]
[1736885115945,81.0,3205.0,3204.2,1.206826]
[1736885116166,81.0,3205.0,3204.5,3.12053]
[1736885116363,81.0,3205.0,3204.2,3.93421]
[1736885116676,81.0,3205.0,3204.8,3.12028]
[1736885117063,81.0,3205.0,3204.6,3.1205]
[1736885117271,81.0,3205.0,3204.7,3.12041]
[1736885117578,81.0,3205.0,3204.9,3.94262]
[1736885117747,81.0,3205.0,3204.9,0.8224]
[1736885117944,81.0,3205.0,3204.5,3.943]
[1736885118192,81.0,3205.0,3204.6,3.12049]
[1736885118545,81.0,3205.0,3204.5,0.8224]
[1736885119652,81.0,3205.0,3203.9,3.12112]
[1736885119653,81.25,3205.0,3204.3,3.12077]
[1736885119868,0.25,3204.8,3204.1,0.8224]
[1736885120072,0.25,3204.6,3203.6,0.8224]
[1736885120387,0.25,3204.4,3203.6,0.8224]
[1736885120753,0.25,3204.2,3203.6,0.8224]
[1736885120943,0.25,3203.8,3203.1,0.8224]
[1736885121354,0.8272,3204.6,3203.2,3.12185]
[1736885121355,0.25,3204.0,3203.2,3.12185]
[1736885121557,0.25,3204.2,3203.2,0.394425]
[1736885121757,0.25,3204.6,3204.0,3.12107]
[1736885121992,0.25,3204.8,3204.0,0.8224]
[1736885122144,0.25,3204.6,3203.4,0.8224]
[1736885122347,0.25,3204.6,3203.6,3.1214]
[1736885122552,0.25,3204.6,3203.7,3.12134]
[1736885122878,0.25,3204.3,3203.6,3.12145]
[1736885123214,0.25,3204.3,3203.4,0.8224]
[1736885123383,0.25,3203.7,3203.0,0.8224]
[1736885123744,0.25,3203.3,3202.5,3.12247]
[1736885124061,0.25,3203.3,3202.3,0.8224]
[1736885124267,0.25,3203.3,3202.4,0.394518]
[1736885124517,0.25,3203.3,3202.7,3.12235]
[1736885124793,0.25,3203.3,3202.4,0.394518]
[1736885124958,0.25,3202.9,3201.3,3.94613]
[1736885125162,0.25,3202.9,3202.1,3.12285]
[1736885125356,0.25,3202.9,3202.1,3.435135]
[1736885125544,0.25,3202.9,3202.2,3.12279]
[1736885125744,0.25,3202.9,3202.1,0.312285]
[1736885125745,0.25,3203.1,3202.1,1.134685]
[1736885125982,0.25,3203.1,3202.1,0.8224]
[1736885126182,0.25,3203.3,3202.1,0.8224]
[1736885126370,0.488,3203.5,3202.8,3.12226]
[1736885126868,0.488,3203.5,3202.9,3.12212]
[1736885127390,0.488,3203.5,3202.3,3.12275]
[1736885127391,0.238,3203.5,3202.3,3.12275]
[1736885127598,1.0772,3204.0,3203.3,3.12173]
[1736885127766,0.488,3204.2,3203.1,3.12197]
[1736885128123,0.488,3204.2,3203.0,3.12198]
[1736885128124,0.25,3204.2,3203.4,0.8224]
[1736885128357,1.0772,3204.4,3203.6,3.12146]
[1736885128636,1.0772,3204.4,3203.4,0.8224]
[1736885128637,0.25,3204.2,3203.4,0.8224]
[1736885128789,0.25,3204.2,3203.5,3.12158]
[1736885128996,1.0772,3204.4,3203.5,0.394398]
[1736885129334,0.238,3204.5,3203.5,3.12158]
[1736885129559,0.238,3204.5,3203.8,3.12121]
[1736885129686,0.238,3204.5,3203.5,3.12158]
[1736885129892,0.238,3204.5,3204.2,3.12085]
[1736885130093,0.238,3204.5,3203.4,0.8224]
[1736885130587,81.0,3205.0,3203.7,3.8224]
[1736885130791,81.0,3205.0,3204.9,3.12022]
[1736885131100,81.0,3205.0,3204.5,0.8224]
[1736885131301,81.0,3205.0,3204.6,3.12051]
[1736885131516,81.0,3205.0,3204.8,3.12027]
[1736885132332,81.0,3205.0,3204.5,0.8224]
[1736885132536,0.06951219,3204.9,3204.5,0.8224]
[1736885132912,0.06951219,3204.9,3204.8,3.12031]
[1736885133247,0.06951219,3204.9,3204.5,3.94295]
[1736885133421,0.06951219,3204.9,3204.5,0.8224]
[1736885133621,0.06951219,3204.9,3204.8,3.12031]
[1736885134151,0.06951219,3204.9,3204.6,3.12048]
[1736885134361,0.06951219,3204.9,3204.4,3.12068]
[1736885134524,0.06951219,3204.9,3204.1,0.8224]
[1736885134728,0.06951219,3204.9,3204.8,3.12031]
[1736885136017,0.06951219,3204.9,3204.4,3.12066]
[1736885136018,0.06951219,3204.9,3204.3,3.1208]
[1736885136212,0.06951219,3204.9,3204.6,3.12047]
[1736885136445,0.06951219,3204.9,3204.2,0.394343]
[1736885136766,0.06951219,3204.9,3204.4,3.1207]
[1736885137079,0.06951219,3204.9,3204.1,0.8224]
[1736885137240,0.06951219,3204.9,3204.3,3.12071]
[1736885138654,0.06951219,3204.9,3204.1,0.8224]
[1736885138832,0.06951219,3204.9,3204.8,6.12031]
[1736885139158,0.06951219,3204.9,3204.8,7.554741]
[1736885139760,0.05800057,3204.9,3204.8,7.554741]
[1736885140255,73.48765886,3205.0,3204.9,6.67022]
[1736885140458,73.48765886,3205.0,3204.9,6.12022]
[1736885141833,70.36753886,3205.0,3204.9,6.67022]
[1736885142124,70.36753886,3205.0,3204.9,8.3030851]
[1736885142125,64.12729886,3205.0,3204.9,8.3030851]
[1736885142335,57.88705886,3205.0,3204.9,8.3030851]
[1736885142668,57.88705886,3205.0,3204.9,7.7530851]
[1736885143537,57.88705886,3205.0,3204.9,8.3030851]
[1736885144354,57.88705886,3205.0,3204.9,7.7530851]
[1736885144651,57.88705886,3205.0,3204.9,1.6328651]
[1736885144850,57.88705886,3205.0,3204.2,0.8224]
[1736885145163,57.88705886,3205.0,3204.8,6.12031]
[1736885145489,57.88705886,3205.0,3204.5,3.0]
[1736885145629,57.88705886,3205.0,3204.7,3.1204]
[1736885145826,57.88705886,3205.0,3204.9,3.0]
[1736885146026,57.88705886,3205.0,3204.9,3.87492]
[1736885146257,57.88705886,3205.0,3204.9,6.87492]
[1736885147574,57.94134985,3205.0,3204.9,6.87492]
[1736885148350,57.94134985,3205.0,3204.9,3.0]
[1736885148696,57.94134985,3205.0,3204.0,0.7547]
[1736885148847,57.94134985,3205.0,3204.6,3.1205]
[1736885149052,57.94134985,3205.0,3204.1,0.46024846]
[1736885149279,57.94134985,3205.0,3204.9,3.0]
[1736885149602,58.19134985,3205.0,3204.9,3.0]
[1736885149758,57.94134985,3205.0,3204.9,3.0]
[1736885149961,57.94134985,3205.0,3204.9,6.12022]
[1736885151669,51.70110985,3205.0,3204.9,6.67022]
[1736885151850,51.70110985,3205.0,3204.9,7.741712]
[1736885153099,51.70110985,3205.0,3204.9,7.80771891]
[1736885155454,51.70110985,3205.0,3204.9,7.191712]
[1736885156101,45.46086985,3205.0,3204.9,7.741712]
[1736885156271,45.46086985,3205.0,3204.9,7.191712]
[1736885157009,45.46086985,3205.0,3204.9,7.81359577]
[1736885157902,45.46086985,3205.0,3204.9,11.05525509]
[1736885158270,45.40657886,3205.0,3204.9,7.81359577]
[1736885158484,45.46139177,3205.0,3204.9,4.191712]
[1736885158687,45.46139177,3205.0,3204.9,3.12022]
[1736885159056,45.46139177,3205.0,3204.9,6.37038518]
[1736885159363,45.46139177,3205.0,3204.8,3.25016518]
[1736885159566,0.25,3204.9,3204.8,3.25016518]
[1736885159800,0.30469544,3204.9,3204.7,3.25016518]
[1736885160100,0.05469544,3204.9,3204.8,3.12031]
[1736885160400,0.05469544,3204.9,3204.7,3.5751817]
[1736885160401,0.05469544,3204.9,3204.7,3.44534652]
[1736885160565,0.05469544,3204.9,3204.8,3.25016518]
[1736885160970,0.05469544,3204.9,3204.7,6.6955917]
[1736885161207,0.05469544,3204.9,3204.8,3.12031]
[1736885161578,0.05469544,3204.9,3204.7,3.5751817]
[1736885161762,0.05469544,3204.9,3204.7,6.6955717]
[1736885161962,0.05469544,3204.9,3204.8,3.78986717]
[1736885162190,0.05469544,3204.9,3204.8,10.04003235]
[1736885162510,0.05469544,3204.9,3204.8,6.78986717]
[1736885163024,6.44e-06,3204.9,3204.8,12.1317016]
[1736885163231,40.7752703,3205.0,3204.9,3.55]
[1736885163433,37.40267749,3205.0,3204.9,11.86347233]
[1736885163806,37.40267749,3205.0,3204.9,12.24710675]
[1736885164101,37.40267749,3205.0,3204.9,4.52621494]
[1736885164299,37.40267749,3205.0,3204.8,4.52621494]
[1736885165030,0.25,3204.9,3204.7,3.12034]
[1736885165223,37.40267749,3205.0,3204.5,3.0]
[1736885165437,37.40267749,3205.0,3204.9,3.12022]
[1736885165586,37.40267749,3205.0,3204.9,3.732242]
[1736885165792,37.40267749,3205.0,3204.9,6.732242]
[1736885166002,37.40267749,3205.0,3204.9,7.538042]
[1736885166223,28.37099225,3205.0,3204.9,11.378042]
[1736885166544,26.81093225,3205.0,3204.9,15.2815249]
[1736885167034,26.81093225,3205.0,3204.9,11.378042]
[1736885168143,26.81093225,3205.0,3204.9,15.28143342]
[1736885168517,26.81093225,3205.0,3204.9,11.378042]
[1736885168832,26.81093225,3205.0,3204.9,8.16131908]
[1736885169037,26.81093225,3205.0,3204.9,7.35551908]
[1736885169344,26.85850496,3205.0,3204.9,3.0]
[1736885169507,26.85850496,3205.0,3204.9,6.12022]
[1736885169887,0.25,3204.9,3204.5,3.8939729]
[1736885170088,0.25,3204.9,3204.6,3.12051]
[1736885170293,0.04751882,3204.8,3204.7,3.75779908]
[1736885170533,8.82e-06,3204.8,3204.7,7.56669801]
[1736885170735,22.13076107,3205.0,3204.9,6.67022]
[1736885170935,20.57070107,3205.0,3204.9,13.93006311]
[1736885171436,19.01064107,3205.0,3204.9,13.93006311]
[1736885171651,19.01064107,3205.0,3204.9,14.95776311]
[1736885171652,8.60423872,3205.0,3204.9,14.95776311]
[1736885172201,7.04417872,3205.0,3204.9,14.95776311]
[1736885172402,7.04417872,3205.0,3204.9,3.89792]
[1736885172632,7.04417872,3205.0,3204.8,7.64649494]
[1736885172817,7.04417872,3205.0,3204.8,4.52621494]
[1736885173146,7.29417872,3205.0,3204.8,6.26192363]
[1736885173357,8.06577872,3205.0,3204.8,3.26192363]
[1736885173526,8.06577872,3205.0,3204.5,7.03483836]
[1736885173527,8.06577872,3205.0,3204.6,3.0]
[1736885173700,8.06577872,3205.0,3204.6,6.12048]
[1736885174033,8.06577872,3205.0,3204.6,3.0]
[1736885174252,0.25,3204.8,3204.5,3.0]
[1736885174606,0.25,3204.8,3204.5,6.12052]
[1736885174907,0.25,3204.6,3204.4,3.26192363]
[1736885175095,0.25,3204.6,3204.3,3.26192363]
[1736885175302,0.25,3204.6,3204.4,3.12068]
[1736885175520,7.04417872,3205.0,3204.2,6.29312444]
[1736885175750,7.04417872,3205.0,3204.9,3.12022]
[1736885176036,7.08816265,3205.0,3204.9,6.12022]
[1736885176355,7.08816265,3205.0,3204.9,14.74266311]
[1736885176495,5.52810265,3205.0,3204.9,18.65697147]
[1736885176698,8.72e-06,3205.0,3204.9,14.74266311]
[1736885177035,8.72e-06,3205.0,3204.9,6.93282]
[1736885177236,8.72e-06,3205.0,3204.9,6.12022]
[1736885177407,8.72e-06,3205.0,3204.9,9.41966106]
[1736885177607,8.72e-06,3205.0,3204.9,14.72091528]
[1736885177821,0.25,3206.1,3205.0,3.55]
[1736885178022,0.25,3206.1,3205.9,3.11924]
[1736885178355,0.25,3206.1,3204.9,12.42887805]
[1736885178356,0.25,3205.6,3205.4,3.11967]
[1736885178643,0.25,3206.0,3205.9,3.11924]
[1736885178806,0.25,3206.0,3205.6,3.0]
[1736885179001,0.25,3205.7,3205.6,6.26759476]
[1736885179510,0.7975,3206.3,3205.3,7.04086371]
[1736885179511,0.25,3206.1,3205.8,3.0]
[1736885179720,0.25,3206.1,3205.6,0.8126]
[1736885179906,0.25,3206.1,3205.5,3.0]
[1736885180106,0.25,3205.7,3205.4,3.11968]
[1736885180306,0.25,3205.7,3205.6,3.26764182]
[1736885180512,0.25,3205.7,3205.5,3.26764182]
[1736885180732,0.25,3205.7,3205.6,3.11952]
[1736885181440,0.25,3205.7,3205.6,6.11952]
[1736885182012,0.25,3206.0,3205.6,3.0]
[1736885182216,0.25,3206.0,3205.7,3.03118792]
[1736885182418,0.25,3206.0,3205.9,3.11924]
[1736885183312,0.25,3206.3,3206.2,3.11895]
[1736885183513,0.7975,3206.7,3205.9,3.11924]
[1736885183514,0.25,3206.5,3206.3,3.11876]
[1736885183719,0.25,3206.5,3206.4,6.11876]
[1736885184101,0.25,3207.0,3206.5,3.0]
[1736885184311,0.25,3206.8,3206.7,6.11838]
[1736885185611,0.25,3207.0,3206.8,3.11837]
[1736885185815,0.25,3207.3,3207.0,3.11817]
[1736885186148,0.25,3207.3,3207.2,6.11789]
[1736885186314,0.25,3207.6,3207.2,3.0]
[1736885186515,0.25,3207.6,3207.1,3.11799]
[1736885186717,0.7975,3207.9,3206.6,3.26764182]
[1736885186718,0.25,3207.1,3206.9,3.11825]
[1736885186970,0.25,3206.9,3206.8,3.26764182]
[1736885187420,0.25,3206.9,3206.3,10.00226333]
[1736885187767,0.25,3206.5,3206.3,3.26764182]
[1736885188547,0.04669526,3206.4,3206.3,6.11885]
[1736885188761,0.25,3206.5,3206.3,6.11885]
[1736885188942,0.25,3206.5,3206.3,3.0]
[1736885189324,0.04673023,3206.4,3205.8,6.38695182]
[1736885189517,0.25,3205.9,3205.7,3.26764182]
[1736885189961,0.25,3205.6,3205.5,3.26764182]
[1736885190165,1.0642,3205.6,3205.5,3.26764182]
[1736885190364,0.25,3205.4,3205.3,3.26764182]
[1736885190968,0.25,3205.4,3204.9,6.12021]
[1736885191832,0.25,3205.4,3204.9,3.12014]
[1736885192238,0.25,3205.6,3204.8,3.0]
[1736885192538,0.25,3205.6,3205.4,3.0]
[1736885193119,0.25,3205.6,3205.4,3.11971]
[1736885194077,0.25,3205.6,3205.2,3.11993]
[1736885194363,0.25,3205.8,3205.6,6.11946]
[1736885194661,0.25,3205.6,3205.5,3.1196]
[1736885195029,0.25,3205.6,3205.4,3.0]
[1736885195344,0.25,3205.6,3205.4,3.11973]
[1736885195753,0.25,3206.0,3205.9,3.1192]
[1736885196560,0.25,3206.0,3205.7,3.11939]
[1736885196868,0.25,3206.0,3205.5,3.0]
[1736885197065,0.25,3206.0,3205.8,3.0]
[1736885199174,0.25,3205.6,3205.5,3.11961]
[1736885199763,0.25,3206.1,3205.6,0.7882]
[1736885199967,0.25,3206.3,3206.2,3.11895]
[1736885200170,0.25,3206.3,3205.7,6.81764182]
[1736885200790,0.25,3206.3,3205.8,3.26764182]
[1736885201087,0.25,3206.3,3205.9,3.0]
[1736885201259,0.25,3206.0,3205.9,6.11924]
[1736885201461,0.25,3206.0,3205.9,3.0]
[1736885201661,1.0642,3206.0,3205.8,3.26764182]
[1736885201997,0.25,3206.2,3205.7,3.0]
[1736885202179,0.25,3205.9,3205.7,3.0]
[1736885202699,0.25,3205.7,3205.6,6.11954]
[1736885202904,0.25,3206.1,3206.0,3.11909]
[1736885204196,0.25,3206.1,3206.0,6.11909]
[1736885204352,0.25,3206.4,3206.1,3.0]
[1736885204684,0.25,3206.5,3206.4,3.11876]
[1736885204987,0.25,3205.9,3205.8,3.26764182]
[1736885205300,0.25,3205.9,3205.7,3.26764182]
[1736885205791,0.25,3205.5,3205.3,7.02597416]
[1736885205953,0.25,3205.5,3205.4,3.11973]
[1736885206347,0.25,3205.5,3205.4,6.11973]
[1736885209951,0.25,3205.5,3205.4,3.0]
[1736885210151,0.25,3205.2,3205.1,3.26764182]
[1736885210392,1.0408,3205.2,3205.1,3.26764182]
[1736885210557,1.08595693,3205.2,3205.1,3.26764182]
[1736885210757,1.08595693,3205.2,3204.4,6.38831182]
[1736885211076,0.25,3205.0,3204.8,3.0]
[1736885211389,0.25,3205.0,3204.9,6.12022]
[1736885211910,1.0338,3205.6,3204.9,6.12022]
[1736885211911,0.25,3205.2,3205.1,6.12002]
[1736885212104,0.7908,3205.6,3205.3,3.11983]
[1736885212105,0.25,3205.4,3205.3,3.11983]
[1736885212471,0.25,3205.4,3205.0,3.0]
[1736885212821,0.25,3205.2,3205.0,3.0]
[1736885212982,0.25,3205.2,3205.1,3.12002]
[1736885213183,0.25,3205.2,3205.0,3.0]
[1736885214006,0.25,3205.2,3205.1,3.12002]
[1736885214478,0.25,3205.2,3205.0,3.0]
[1736885214679,0.25,3205.2,3204.8,0.62037259]
[1736885215198,0.25,3205.2,3205.0,3.0]
[1736885215907,0.25,3205.2,3204.7,3.63431144]
[1736885216098,0.25,3204.7,3204.6,3.26764182]
[1736885216476,0.25,3204.7,3204.5,3.1206]
[1736885216877,0.25,3204.7,3204.6,3.0]
[1736885217108,0.25,3204.7,3204.6,6.12051]
[1736885218611,0.25,3204.7,3204.6,3.0]
[1736885218913,0.25,3204.5,3204.4,6.12063]
[1736885219086,0.25,3204.5,3204.4,9.38827182]
[1736885219411,0.25,3204.5,3204.4,6.12063]
[1736885220385,3.11918,3206.0,3204.6,3.0]
[1736885220386,0.25,3205.0,3204.6,3.0]
[1736885220612,0.25,3205.0,3204.7,0.03119417]
[1736885220815,0.25,3205.0,3204.7,3.12041]
[1736885221015,0.25,3205.0,3204.9,6.12022]
[1736885221248,0.25,3204.6,3204.5,3.26764182]
[1736885221378,0.25,3204.6,3204.4,3.92117018]
[1736885221725,0.25,3204.1,3204.0,3.26492299]
[1736885221911,1.0369,3204.1,3204.0,3.26492299]
[1736885222295,0.25,3203.9,3203.8,3.26492299]
[1736885222491,0.243,3205.1,3203.8,3.26492299]
[1736885222492,0.7869,3205.2,3203.8,6.26492299]
[1736885222705,0.25,3204.5,3204.1,0.7532]
[1736885222890,0.25,3204.7,3204.6,3.12051]
[1736885223092,0.25,3204.9,3204.7,3.0]
[1736885223404,0.25,3204.9,3204.8,6.12031]
[1736885223938,0.25,3204.9,3204.8,6.87351]
[1736885224221,0.25,3204.9,3204.8,6.12031]
[1736885224380,0.25,3204.9,3204.8,3.0]
[1736885225017,0.7869,3204.8,3204.4,3.26492299]
[1736885225377,0.7869,3204.8,3204.5,3.0]
[1736885225811,0.7869,3204.8,3204.5,6.12059]
[1736885226118,0.25,3204.2,3204.1,3.26492299]
[1736885226318,1.0369,3204.2,3204.1,3.26492299]
[1736885226519,1.0369,3204.2,3203.7,3.26492299]
[1736885226721,0.25,3203.8,3203.7,9.38629299]
[1736885226881,0.25,3203.8,3203.7,3.0]
[1736885227205,0.25,3203.8,3203.5,3.12154]
[1736885227206,0.25,3203.6,3203.5,3.12154]
[1736885227523,0.25,3203.6,3203.5,6.12154]
[1736885228137,0.25,3203.6,3203.3,0.61549522]
[1736885228138,0.25,3203.4,3203.3,0.61549522]
[1736885228618,0.25,3203.4,3203.3,3.73727522]
[1736885229520,0.25,3203.1,3202.9,3.26492299]
[1736885229723,1.0369,3203.1,3202.9,3.26492299]
[1736885230128,1.0369,3203.1,3202.5,3.12253]
[1736885230331,0.25,3202.8,3202.3,3.12275]
[1736885230488,0.25,3202.5,3202.4,6.12265]
[1736885230850,0.25,3202.7,3202.6,3.12246]
[1736885231890,0.25,3202.7,3202.6,6.12246]
[1736885232150,0.25,3203.1,3203.0,3.12207]
[1736885232327,0.25,3203.1,3203.0,10.09351174]
[1736885232651,0.25,3203.1,3203.0,6.12207]
[1736885233597,0.25,3203.3,3203.2,3.12187]
[1736885234009,0.25,3203.6,3203.5,3.12158]
[1736885234209,0.25,3203.6,3203.5,3.87478]
[1736885234428,0.7869,3204.5,3203.3,3.12174]
[1736885234429,0.25,3203.4,3203.3,3.12174]
[1736885234813,0.25,3203.4,3203.3,3.0]
[1736885235548,0.25,3203.4,3203.0,3.12198]
[1736885235549,0.25,3203.1,3203.0,3.12198]
[1736885235838,0.25,3203.1,3203.0,6.12198]
[1736885238220,0.25,3203.7,3203.4,3.12168]
[1736885238499,0.8164,3204.4,3203.7,6.12139]
[1736885238778,0.25,3203.9,3203.8,3.91429]
[1736885239751,0.25,3203.9,3203.8,6.91429]
[1736885239955,0.25,3204.3,3203.9,3.55]
[1736885240262,0.25,3204.6,3204.5,6.12061]
[1736885240430,0.25,3204.6,3204.5,6.67061]
[1736885240759,0.25,3204.9,3204.8,3.12031]
[1736885241486,0.25,3204.7,3204.6,3.12051]
[1736885242058,0.25,3204.7,3204.6,6.12051]
[1736885242589,0.25,3205.1,3205.0,6.12012]
[1736885242757,0.25,3205.1,3205.0,9.71851661]
[1736885244062,0.25,3205.1,3205.0,3.0]
[1736885244264,0.25,3205.1,3205.0,6.12012]
[1736885244993,0.25,3205.1,3205.0,9.71851661]
[1736885245197,0.25,3205.1,3205.0,6.12012]
[1736885245771,0.25,3205.1,3205.0,9.71851661]
[1736885245955,0.25,3205.3,3205.2,3.11993]
[1736885246164,0.25,3205.3,3205.2,9.71832661]
[1736885248096,0.25,3205.3,3205.2,10.51132661]
[1736885248459,0.25,3205.3,3205.2,9.71832661]
[1736885248665,0.25,3205.3,3205.2,3.0]
[1736885249468,0.25,3204.6,3204.4,3.91364]
[1736885249696,0.25,3204.6,3204.5,3.75524485]
[1736885249996,0.25,3204.6,3204.5,6.75524485]
[1736885250314,0.25,3204.6,3204.5,0.63463485]
[1736885250462,0.25,3204.1,3204.0,10.7774096]
[1736885250657,0.25,3204.1,3204.0,3.88726881]
[1736885250898,0.25,3204.1,3204.0,9.38601299]
[1736885251096,0.25,3204.1,3204.0,3.26492299]
[1736885251359,1.0664,3204.1,3203.6,3.26492299]
[1736885251598,1.0664,3204.1,3203.6,6.38633299]
[1736885251772,1.0664,3204.1,3203.6,7.02205318]
[1736885252187,1.0664,3204.1,3203.6,3.75713019]
[1736885252393,0.25,3203.7,3203.6,0.63572019]
[1736885252595,0.25,3203.2,3203.1,7.6563196]
[1736885252802,0.25,3203.2,3203.1,6.38689299]
[1736885253303,0.25,3203.2,3203.1,9.38689299]
[1736885253712,0.25,3203.2,3203.1,6.38689299]
[1736885254071,0.25,3203.2,3203.1,9.72036661]
[1736885254478,0.8164,3204.1,3203.3,6.12178]
[1736885254479,0.25,3203.4,3203.3,6.12178]
[1736885254677,0.25,3203.4,3203.3,6.15299095]
[1736885254884,0.243,3204.5,3203.7,3.12139]
[1736885254885,0.25,3203.8,3203.7,3.12139]
[1736885255085,0.25,3203.8,3203.7,9.71978661]
[1736885255914,0.25,3204.0,3203.9,3.12119]
[1736885256161,0.25,3204.2,3204.0,3.0]
[1736885256425,0.25,3204.2,3204.1,6.121]
[1736885258512,0.25,3204.2,3204.1,3.0]
[1736885258713,0.25,3204.2,3203.9,3.12114]
[1736885258884,0.25,3204.2,3203.7,3.0]
[1736885259215,0.25,3204.2,3203.9,3.12109]
[1736885259379,0.25,3204.2,3204.0,3.12102]
[1736885260085,0.25,3204.2,3203.6,0.62521888]
[1736885260388,0.25,3204.2,3204.1,3.121]
[1736885260818,0.2496,3204.9,3204.4,3.0]
[1736885260819,0.25,3204.6,3204.4,3.0]
[1736885261082,0.25,3204.8,3204.7,6.12041]
[1736885261288,0.2496,3204.9,3204.8,6.12031]
[1736885261684,0.2496,3204.9,3204.4,3.9729866]
[1736885261685,0.25,3204.4,3204.3,3.1208]
[1736885261884,0.25,3204.0,3203.9,7.69586855]
[1736885262313,0.25,3204.2,3204.1,3.121]
[1736885263113,0.25,3204.2,3204.1,6.121]
[1736885264431,0.25,3204.2,3204.1,3.0]
[1736885264899,0.25,3204.2,3204.1,6.121]
[1736885265296,0.25,3204.2,3204.1,3.0]
[1736885265612,0.25,3204.2,3204.1,6.121]
[1736885266027,0.25,3204.2,3204.1,6.15220537]
[1736885266293,0.25,3204.5,3204.4,3.1207]
[1736885266492,0.4996,3204.9,3204.6,6.12051]
[1736885266808,0.4996,3204.9,3204.8,6.90771]
[1736885266809,0.2496,3204.9,3204.8,6.90771]
[1736885267008,0.25,3205.1,3205.0,3.12012]
[1736885267223,0.25,3205.1,3205.0,10.0931066]
[1736885267396,0.25,3205.7,3205.6,3.11954]
[1736885267597,0.25,3206.2,3205.8,3.11934]
[1736885267820,0.25,3206.2,3206.1,10.0920366]
[1736885268095,0.25,3206.4,3206.3,3.11885]
[1736885272018,0.25,3206.8,3206.5,3.11866]
[1736885272217,0.25,3206.8,3206.7,6.11847]
[1736885272814,0.25,3206.8,3206.7,3.0]
[1736885273544,0.25,3206.8,3206.3,3.11876]
[1736885273545,0.25,3206.4,3206.3,3.11876]
[1736885274801,0.25,3206.4,3206.2,3.0]
[1736885275539,0.03228155,3206.3,3206.2,3.0]
[1736885275705,0.25,3206.4,3206.2,3.0]
[1736885275906,0.03220302,3206.3,3206.2,3.0]
[1736885276106,0.25,3206.4,3206.2,6.11895]
[1736885276306,0.25,3206.4,3206.3,3.11885]
[1736885276739,0.25,3206.4,3206.3,3.15003054]
[1736885277055,0.25,3206.4,3206.3,3.11885]
[1736885278127,0.25,3206.4,3206.3,3.15003092]
[1736885278326,0.25,3206.7,3206.6,6.11856]
[1736885278837,0.25,3206.7,3206.6,3.0]
[1736885279542,0.25,3206.7,3206.6,6.11856]
[1736885280157,0.25,3206.7,3206.6,3.0]
[1736885280559,0.25,3206.7,3206.6,6.11856]
[1736885280767,0.25,3206.9,3206.8,3.11837]
[1736885281057,0.25,3207.2,3207.1,3.0]
[1736885281207,0.25,3207.2,3207.1,6.11808]
[1736885281407,0.25,3207.2,3207.1,6.14925051]
[1736885281637,0.25,3207.4,3207.3,6.11788]
[1736885281811,0.25,3207.7,3207.6,3.11759]
[1736885282531,0.7737,3208.4,3207.6,3.11759]
[1736885282532,0.25,3208.3,3208.2,6.117]